Cogmind - Beta 11 @@@ ROGUE MODE // 2022.04.02 @ 00:55:25 Player: Turbografx16 Result: Self-destructed Performance ------------- Evolutions (2) 1000 Regions Visited (4) 800 Robots Destroyed (37) 185 Value Destroyed (907) 907 Prototype IDs (1) 20 Alien Tech Used (0) 0 Bonus (0) 0 TOTAL SCORE: 2912 Bonus ------- None Cogmind --------- Core Integrity 550/550 Matter 9/300 Energy 325/325 System Corruption 0% Temperature Cool (7) Movement Core (350) Ox6 Location -8/Materials Parts ------- > --- POWER (1) -------- Light Ion Engine > --- PROPULSION (4) --- (None) > --- UTILITY (4) ------ Small Storage Unit Large Battery Seismic Detector > --- WEAPON (2) ------- Flak Cannon Grenade Launcher > --- INVENTORY (8) ---- Light Ion Engine Aluminum Leg Peak State ------------ > --- POWER ------------ Ion Engine > --- PROPULSION ------- Aluminum Leg Aluminum Leg Improved Flight Unit > --- UTILITY ---------- Small Storage Unit Seismic Detector Light Armor Plating > --- WEAPON ----------- EM Pulse Gun EMP Blaster > --- INVENTORY -------- Light Ion Engine Light Treads Light Treads Large Battery EMP Blaster EMP Blaster Grenade Launcher Grenade Launcher [Rating: 13] Favorites ----------- Power Ion Engine Engine Ion Engine Power Core Light Nuclear Core Propulsion Aluminum Leg Treads Light Treads Leg Aluminum Leg Flight Unit Improved Flight Unit Utility Small Storage Unit Device Seismic Detector Storage Small Storage Unit Protection Hardened Light Armor Plating Weapon EMP Blaster Energy Gun EM Pulse Gun Ballistic Gun Light Assault Rifle Ballistic Cannon Flak Cannon Launcher EMP Blaster Build | -11 -10 -9 -9 -8 ------- Run | Scr Mat Mat Min Mat Slots Evolved 4 | . . 2 . 2 Power . | . . . . . Propulsion 2 | . . 1 . 1 Utility 2 | . . 1 . 1 Weapon . | . . . . . Parts Attached 22 | 1 5 4 10 2 Power 3 | . . . 3 . Engine 2 | . . . 2 . Core 1 | . . . 1 . Reactor . | . . . . . Propulsion 4 | . . 1 3 . Treads 2 | . . . 2 . Leg 1 | . . . 1 . Wheel . | . . . . . Hover . | . . . . . Flight 1 | . . 1 . . Utility 7 | . 3 2 1 1 Device 2 | . . 1 . 1 Storage 2 | . 1 . 1 . Processor . | . . . . . Hackware . | . . . . . Protection 3 | . 2 1 . . Artifact . | . . . . . Weapon 8 | 1 2 1 3 1 Energy Gun . | . . . . . Energy Cannon . | . . . . . Ballistic Gun 1 | 1 . . . . Ballistic Cannon 1 | . . . . 1 Launcher 6 | . 2 1 3 . Special Weapon . | . . . . . Impact Weapon . | . . . . . Slashing Weapon . | . . . . . Piercing Weapon . | . . . . . Special Melee Weapon . | . . . . . Unidentified Prototypes 1 | . . 1 . . Parts Lost 13 | . 1 1 10 1 Power 2 | . . . 2 . Propulsion 4 | . . . 3 1 Utility 1 | . . . 1 . Weapon 6 | . 1 1 4 . Highest Loss Streak 5 | . 1 1 5 1 To Critical Strikes . | . . . . . Average Slot Usage (%) 90 | . 93 87 93 59 Engine 9 | . 14 11 3 9 Core 2 | . . . 7 . Treads 7 | . . . 20 7 Leg 19 | . 28 22 10 . Device 2 | . . 11 . 7 Storage 17 | . 17 11 21 18 Protection 7 | . 4 11 10 . Energy Gun 7 | . 14 6 . . Launcher 14 | . 11 14 19 9 Naked Turns . | . . . . . Heaviest Build 25 | 13 19 24 25 21 Greatest Support 40 | 20 20 20 40 20 Greatest Overweight (x) 1 | . . 1 . 1 Average Overweight (x) . | . . . . . Largest Inventory Capacity 8 | 8 8 8 8 8 Average Capacity 8 | 8 8 8 8 8 Most Carried 8 | 6 8 8 7 2 Average Carried 5 | 6 7 7 3 1 Final Capacity 8 | 8 8 8 8 8 Final Carried 7 | 6 7 7 2 2 Class Distribution -------------------- 100% | Mutant Dominant Class ---------------- Mutant | -10/Materials Mutant | -9/Materials Mutant | -9/Mines Mutant | -8/Materials Resources | -11 -10 -9 -9 -8 ----------- Run | Scr Mat Mat Min Mat Matter Collected 463 | 192 63 13 193 2 Remotely . | . . . . . Salvage Created 982 | 22 445 131 339 45 Parts 78 | 4 29 14 25 6 Haulers Intercepted . | . . . . . Recyclers Shooed . | . . . . . Parts Field Recycled . | . . . . . Retrieved Matter . | . . . . . Parts Self-Destructed . | . . . . . Prevented . | . . . . . Kills | -11 -10 -9 -9 -8 ------- Run | Scr Mat Mat Min Mat Combat Hostiles Destroyed 28 | . 10 5 12 1 Guns 3 | . 1 2 . . AOE 23 | . 8 3 11 1 Classes Destroyed 9 | 1 4 1 2 1 Worker 3 | . . . 3 . Builder 3 | . 2 . 1 . Tunneler 1 | 1 . . . . Operator 1 | . . . . 1 Watcher 1 | . 1 . . . Swarmer 10 | . 3 4 3 . Grunt 13 | . 7 . 6 . Brawler 1 | . . . 1 . Sentry 4 | . . 1 2 1 Best Kill Streak 7 | 1 7 4 7 2 Combat Bots Only 5 | . 4 4 5 1 Max Kills in Single Turn 2 | 1 2 1 2 1 Gunslinging . | . . . . . Exploded 2 | . 2 1 2 1 Melee . | . . . . . Uniques/NPCs Destroyed . | . . . . . Combat | -11 -10 -9 -9 -8 -------- Run | Scr Mat Mat Min Mat Damage Taken 1532 | . 170 367 941 54 Core 137 | . . 20 117 . Absorbed by Shields . | . . . . . Core Remaining (%) 88 | 100 100 . 65 . Volleys Fired 50 | 1 12 10 25 2 Largest 2 | 2 2 2 2 2 Hottest 74 | 60 73 73 66 74 Shots Fired 83 | 2 24 15 38 4 Gun 20 | 2 12 6 . . Cannon 2 | . . . . 2 Launcher 61 | . 12 9 38 2 Special . | . . . . . Kinetic 3 | 1 . . . 2 Thermal . | . . . . . Explosive 21 | . . . 19 2 Electromagnetic 59 | 1 24 15 19 . Robot Hit Streak 9 | 1 8 6 9 4 Robot Miss Streak 4 | . 1 2 4 1 Penetration Max . | . . . . . Secondary Targets . | . . . . . Shots Hit Robots 47 | 1 15 7 22 2 Core Hits 57 | 1 16 6 31 3 Critical Kills . | . . . . . Critical Parts Destroyed . | . . . . . Critical Strikes 1 | . 1 . . . Corrupt 1 | . 1 . . . Melee Attacks . | . . . . . Impact . | . . . . . Slashing . | . . . . . Piercing . | . . . . . Sneak Attacks . | . . . . . Combat Hostiles . | . . . . . Follow-up Attacks . | . . . . . Damage Inflicted 2143 | 13 783 136 1123 88 Guns 176 | 13 118 45 . . Cannons 26 | . . . . 26 Explosions 1941 | . 665 91 1123 62 Melee . | . . . . . Ramming . | . . . . . Kinetic 26 | . . . . 26 Thermal 195 | . 172 . 23 . Explosive 733 | . . . 671 62 Electromagnetic 1189 | 13 611 136 429 . Impact . | . . . . . Slashing . | . . . . . Piercing . | . . . . . Highest Corruption 5 | . 1 2 5 . Average Corruption 2 | . 1 1 3 . Corruption Purged . | . . . . . Corruption Blocked . | . . . . . Effects 14 | . . 1 13 . Message Errors 7 | . . 1 6 . Matter Fused 2 | . . . 2 . Heat Flow Errors 2 | . . . 2 . Energy Discharges 2 | . . . 2 . Data Loss (major) 1 | . . . 1 . Overload Shots . | . . . . . Overflow Damage 61 | . 11 10 40 . Projectiles . | . . . . . Explosions 61 | . 11 10 40 . Melee . | . . . . . Knockbacks . | . . . . . Impact . | . . . . . Kinetic . | . . . . . Secondary . | . . . . . Self-Inflicted Damage 583 | . 33 114 408 28 Shots 33 | . 3 7 22 1 Rammed . | . . . . . Targets Rammed . | . . . . . Kicked . | . . . . . Crushed . | . . . . . Highest Temperature 271 | 20 99 24 271 7 Average Temperature 44 | 15 37 9 56 7 Received Heat Transfer 327 | . 66 45 207 9 Siege Activations . | . . . . . Robots Corrupted 2 | . 1 . 1 . Combat Hostiles 2 | . 1 . 1 . Parts Fried 3 | . 3 . . . Impact Corruptions . | . . . . . Robots Melted . | . . . . . Combat Hostiles . | . . . . . Parts Melted . | . . . . . Heat Transferred 250 | . 200 . 50 . Parts Sabotaged . | . . . . . Parts Stolen . | . . . . . Parts Stripped . | . . . . . Power Chain Reactions 7 | . 4 1 2 . Missiles Intercepted . | . . . . . Alert | -11 -10 -9 -9 -8 ------- Run | Scr Mat Mat Min Mat Peak Influence 401 | 5 258 289 401 191 Initial 144 | . 3 108 112 144 Average 145 | 3 36 188 260 151 Maximum Alert Level 2 | . 1 1 2 . Low Security (%) 62 | 100 96 62 14 100 Level 1 37 | . 3 37 84 . Level 2 . | . . . 1 . Level 3 . | . . . . . Level 4 . | . . . . . Level 5 . | . . . . . High Security . | . . . . . Max Security . | . . . . . Squads Dispatched 4 | . 2 . . 2 Investigation 2 | . 1 . . 1 Extermination . | . . . . . Reinforcement 1 | . 1 . . . Assault . | . . . . . Garrison 1 | . . . . 1 Intercept . | . . . . . Searches Triggered . | . . . . . Construction Impeded . | . . . . . Haulers Reinforced . | . . . . . Active Scanning Responses . | . . . . . Cargo Convoy Interrupts . | . . . . . Stealth | -11 -10 -9 -9 -8 --------- Run | Scr Mat Mat Min Mat Distress Signals 1 | . . . . 1 Communications Jammed . | . . . . . Distress Signals . | . . . . . Times Spotted 44 | . 17 11 13 3 Peak Tracking Total 6 | . 5 6 3 3 Tactical Retreats 1 | . . 1 . . Traps | -11 -10 -9 -9 -8 ------- Run | Scr Mat Mat Min Mat Traps Triggered . | . . . . . Indirectly . | . . . . . Trap Hack Attempts . | . . . . . Triggered . | . . . . . Disarmed . | . . . . . Reprogrammed . | . . . . . Reused . | . . . . . Traps Extracted . | . . . . . Installed . | . . . . . Triggered 1 | . 1 . . . Machines | -11 -10 -9 -9 -8 ---------- Run | Scr Mat Mat Min Mat Machines Disabled 7 | . 3 1 3 . Max in Single Turn 1 | . 1 1 1 . Machines Sabotaged . | . . . . . Garrisons Compromised . | . . . . . Overloaded Fab Kills . | . . . . . Hacking | -11 -10 -9 -9 -8 --------- Run | Scr Mat Mat Min Mat Machines Accessed 10 | . 8 1 . 1 Terminals 9 | . 7 1 . 1 Fabricators . | . . . . . Repair Stations . | . . . . . Recycling Units 1 | . 1 . . . Scanalyzers . | . . . . . Garrison Access . | . . . . . Total Hacks 27 | . 20 3 . 4 Successful 19 | . 15 2 . 2 Failed 7 | . 4 1 . 2 Catastrophic . | . . . . . Database Lockouts 1 | . 1 . . . Manual 31 | . 24 3 . 4 Terminals 26 | . 19 3 . 4 Fabricators . | . . . . . Repair Stations . | . . . . . Recycling Units 1 | . 1 . . . Scanalyzers . | . . . . . Garrison Access . | . . . . . Terminal Hacks 7 | . 6 1 . . Robot Analysis 2 | . 2 . . . Terminal Index 2 | . 1 1 . . Unreport Threat 1 | . 1 . . . Locate Traps 2 | . 2 . . . Fabricator Hacks . | . . . . . Repair Station Hacks . | . . . . . Recycling Unit Hacks 1 | . 1 . . . Report Inventory 1 | . 1 . . . Scanalyzer . | . . . . . Garrison Access Hacks . | . . . . . Unauthorized Hacks 11 | . 8 1 . 2 Terminals 11 | . 8 1 . 2 Track 1 | . 1 . . . Assimilate 1 | . . . . 1 Botnet 9 | . 7 1 . 1 Fabricators . | . . . . . Repair Stations . | . . . . . Recycling Units . | . . . . . Scanalyzers . | . . . . . Garrison Access . | . . . . . Data Cores Recovered . | . . . . . Used . | . . . . . Hacking Detections 6 | . 5 . . 1 Full Trace Events 1 | . . . . 1 Feedback Events . | . . . . . Feedback Blocked . | . . . . . Robot Schematics Acquired . | . . . . . Robots Built . | . . . . . Authchips . | . . . . . Time . | . . . . . Total Robot Build Rating . | . . . . . Part Schematics Acquired . | . . . . . Parts Built . | . . . . . Authchips . | . . . . . Time . | . . . . . Total Part Build Rating . | . . . . . Parts Repaired . | . . . . . Time . | . . . . . Parts Recycled . | . . . . . Recycled Matter . | . . . . . Retrieved Matter . | . . . . . Retrieved Components . | . . . . . Parts Scanalyzed . | . . . . . Part Schematics Acquired . | . . . . . Parts Damaged . | . . . . . Bothacking | -11 -10 -9 -9 -8 ------------ Run | Scr Mat Mat Min Mat Used RIF Installer . | . . . . . Robots Hacked . | . . . . . Non-combat . | . . . . . Combat . | . . . . . Robot Hacks Applied . | . . . . . Relay Couplers Released . | . . . . . Fabnet Peak Effective % . | . . . . . Robots Rewired . | . . . . . Allies Hacked . | . . . . . Hacks Repelled . | . . . . . Allies | -11 -10 -9 -9 -8 -------- Run | Scr Mat Mat Min Mat Total Allies . | . . . . . Largest Group . | . . . . . Highest-Rated Group . | . . . . . Highest-Rated Ally . | . . . . . Total Orders . | . . . . . Ally Attacks . | . . . . . Total Damage . | . . . . . Kills . | . . . . . Allies Corrupted . | . . . . . Allies Melted . | . . . . . Intel | -11 -10 -9 -9 -8 ------- Run | Scr Mat Mat Min Mat Robot Analysis Total 2 | . 2 . . . Derelict Logs Recovered 1 | . . . 1 . Drone Launches . | . . . . . Drone Recoveries . | . . . . . Exploration | -11 -10 -9 -9 -8 ------------- Run | Scr Mat Mat Min Mat Turns Passed 1351 | 5 592 205 485 64 Spaces Moved 818 | 1 447 117 229 24 Core . | . . . . . Treads 253 | . . . 229 24 Legs 565 | 1 447 117 . . Wheels . | . . . . . Hover . | . . . . . Flight . | . . . . . Fastest Speed 120 | 120 120 120 160 160 Average Speed 138 | 120 120 145 160 226 Slowest Speed 240 | 120 120 190 160 240 Overloaded Moves . | . . . . . Propulsion Burnouts . | . . . . . Robots Hopped . | . . . . . Cave-ins Triggered . | . . . . . Exploration Rate (%) 33 | 1 82 19 62 4 Regions Visited 4 Branch Regions 1 Pre-discovered Areas . | . . . . . Known Exits Taken . | . . . . . Unknown Exits Taken 4 | 1 1 1 1 . Scrap Searched . | . . . . . Spaces Dug 9 | . . . . 9 Terrain Destroyed 126 | . 6 . 98 22 Melee . | . . . . . Projectile . | . . . . . AOE 126 | . 6 . 98 22 Terrain Rammed . | . . . . . Walls Destroyed . | . . . . . Machines Disabled . | . . . . . Actions | -11 -10 -9 -9 -8 --------- Run | Scr Mat Mat Min Mat Total 954 | 2 479 137 307 29 Wait 53 | . 7 3 43 . Move 814 | . 446 116 228 24 Hop . | . . . . . Pick Up 8 | . 4 2 1 1 Fast Attach 5 | . 3 1 . 1 Attach 11 | . 1 2 7 1 Detach 1 | . 1 . . . Swap 6 | 1 1 1 3 . Drop 6 | . 4 2 . . Fire 50 | 1 12 10 25 2 Melee . | . . . . . Ram . | . . . . . Kick . | . . . . . Crush . | . . . . . Escape Stasis . | . . . . . Rewire . | . . . . . Trap . | . . . . . Miscellaneous . | . . . . . Route ------- -11/Scrapyard -10/Materials (discovered 4 exits: *Mat x3 / [*Min]) -9/Materials (discovered 2 exits: [*Min x2]) -9/Mines -8/Materials History --------- Turn | Location | Event 6 | -11/Scrapyard | Discovered new exit (range 0) 6 | -11/Scrapyard | Entered Materials 200 | -10/Materials | Discovered new exit (range 15) 259 | -10/Materials | Discovered new exit (range 6) 311 | -10/Materials | Build established: Mutant 316 | -10/Materials | Discovered new exit (range 9) 347 | -10/Materials | Discovered new exit (range 11) 395 | -10/Materials | Central database locked down 598 | -10/Materials | Entered another Materials area 598 | -9/Materials | Evolved 2 slots: Propulsion x1, Utility x1 705 | -9/Materials | Discovered new exit (range 14) 792 | -9/Materials | Discovered new exit (range 14) 803 | -9/Materials | Entered Mines 842 | -9/Mines | Lost 4 parts (1p1n2w) 850 | -9/Mines | Received a Rocket Launcher from a helpful Derelict 1264 | -9/Mines | Discovered new exit (range 14) 1274 | -9/Mines | Lost 5 parts (2n1u2w) 1288 | -9/Mines | Entered Materials 1288 | -8/Materials | Evolved 2 slots: Propulsion x1, Utility x1 1349 | -8/Materials | Garrison activated, responded to threat 1352 | -8/Materials | Self-destructed Last Messages --------------- >>Trojan(Assimilate) Trojan loaded successfully. Testing... System interface override in place. 01331_ ALERT: Suspicious activity at Terminal M010. Dispatching Investigation squad. 01331_ O-16 Technician sends out distress signal. 01331_ O-16 Technician: "IFF HANDSHAKE FAILED. SECURING TERMINAL." 01333_ O-16 Technician destroyed. 01338_ U-05 Engineer lays Concrete. 01344_ U-05 Engineer builds a Wall. 01346_ Acquired Lgt. Ion Engine. 01347_ Acquired 2 matter. 01347_ Lgt. Treads destroyed. 01348_ U-05 Engineer builds a Wall. 01349_ Y-45 Defender calls for garrison reinforcements. 01349_ ALERT: Activating Garrison Access M001. 01349_ Y-45 Defender destroyed. 01352_ U-05 Engineer builds a Wall. Map ----- +----------------------------------------------------+ | ??????????????????????????????????????????? | | ??????????????????????????????????????????? | | ??????????????????????????????????????????? | | ??????????????????????????????????????????? | | ??????????????????????????????????????????? | | ??????????????????????????????????????????? | | ??????????????????????????????????????????? | | ??????????????????????????????????????????? | | ??????????????????????????????????????????? | | ??????????????????????????????????????????? | | ??????????????????????????????????????????? | | ??????????????????????????????????????????? | | ??????????????????????????????????????????? | | ??????????????????????????????????????????? | | ??????????????????????????????????????????? | | ??????????????????????????????????????????? | | ??????????????????????????????????????????? | | ???????????????????????????#??????????????? | | ?????????????????????????? #??????????????? | | ???????????????????????## #??????????????? | | ?????????????????##### g #??????????????? | | ????????????????## # +??????????????? | | ??????????????### [ #??????????????? | | ??????????????? =%! ?????????????????? | | ???????????????## * #???????????????????? | | ???????????????# @ #????????????????????? | | ???????????????# # ##????????????????????? | | ???????????????###u #?????????????????????? | | ????????????????## ##?????????????????????? | | ????????????????## ##?????????????????????? | | ??????????####### #?????????????????????? | | ??????????# T #?????????????????????? | | ??????????# ##### #?????????????????????? | | ??????????# #???## ##?????????????????????? | | ??????????# #????# #??????????????????????? | | ??????#####+##???# #??????????????????????? | | ??????# #???# ??????????????????????? | | ??????# #???# ??????????????????????? | | ??????# """ #???# ?????????????????????? | | ??????# """ #???? ?????????????????????? | | ??????# """ #???? ?????????????????????? | | ??????# #???? #????????????????????? | | ??????####+####### #????????????????????? | | ??????# ?????????????????? | | ??????# ?????????????????? | | ??????# ?????????????????? | | ??????###########+######??????????????????? | | ??????????????????????????????????????????? | | ??????????????????????????????????????????? | | ??????????????????????????????????????????? | +----------------------------------------------------+ Best States ------------- Heat Dissipation 31 Energy Generation 14 Energy Capacity 450 Matter Stores 294 Matter Capacity 300 Sight Range 16 Terrain Scan Density 10 Armor Coverage 150 Evasion (%) 55 Recoil Reduction 2 Item Schematics ----------------- None Robot Schematics ------------------ None Fabricated ------------ Nothing Alien Tech Used ----------------- None Achievements -------------- None Challenges ------------ None Game ------ Seed TeslaBehemothPrototype Manual? 0 Play Time 00:17:30 Cumulative 54.8 hours Start 2022.04.02 @ 00:34:26 End 2022.04.02 @ 00:55:25 Sessions 1 Manual Loads 0 Difficulty Rogue Special Mode None Game No. 83 Rogue 27 Adventurer 56 Explorer 0 Win Type - Total 4 Types 3/0/0/1/0/0/0/0/0 Lore% 46 Gallery% 53 Achievement% 54 Wizard Run 0 Options --------- ASCII 0 Keyboard 0 Movement Mouse Keybinds 0 Fullscreen 1 Font 20/SmallcapsGlow Map View 66x50 Tactical HUD 1 Map Filters NONE Filters NONE Steam 1 RUN: 6ee4b2c9-84d9-4557-b8e3-4f9447226413